bitfinex-derivatives/quotes_ETHF0:USTF0_20260102
["timestamp","ask_amount","ask_price","bid_price","bid_amount"]
[1767364798700,0.59877326,3050.8,3048.9,0.00338891]
[1767364798904,0.00389537,3051.3,3048.9,0.00338891]
[1767364798905,0.59877326,3050.1,3048.9,0.00338891]
[1767364799212,0.1641,3049.8,3047.6,0.16421]
[1767364799404,0.60369064,3049.0,3048.4,7.38e-06]
[1767364799609,0.60369064,3049.0,3046.5,0.16427]
[1767364799804,0.60369064,3049.0,3047.3,0.00249671]
[1767364800014,0.00824068,3049.0,3047.4,0.16422]
[1767364800215,0.3279,3048.9,3047.4,4.42661624]
[1767364800409,0.3279,3048.9,3047.4,4.26239624]
[1767364800616,0.00824068,3049.0,3047.8,0.00491738]
[1767364801016,0.60701394,3049.0,3047.9,4.26953523]
[1767364801310,0.60701394,3049.0,3047.8,0.00491738]
[1767364801515,0.60701394,3049.0,3048.2,0.00249671]
[1767364802106,0.00824068,3049.0,3048.5,0.00249671]
[1767364802308,0.60701394,3049.0,3047.8,0.00491738]
[1767364802509,0.00824068,3049.0,3048.4,0.00249671]
[1767364802818,1.7038147,3051.0,3048.4,0.00249671]
[1767364802819,0.59877326,3050.4,3048.5,4.20727853]
[1767364803233,0.59877326,3050.4,3049.2,0.00249671]
[1767364803512,0.59877326,3051.1,3049.3,4.20727853]
[1767364803718,0.59877326,3051.1,3049.7,0.00249671]
[1767364803912,0.00491738,3050.7,3050.1,0.00491738]
[1767364804308,0.60369064,3050.7,3049.7,0.00261072]
[1767364804505,0.60369064,3050.7,3048.1,0.16418]
[1767364804914,0.60369064,3050.7,3048.4,0.00249671]
[1767364805318,0.60369064,3050.7,3049.2,0.00491738]
[1767364805617,0.59877326,3050.6,3049.2,0.00757256]
[1767364805816,0.59877326,3050.3,3049.2,0.00757256]
[1767364806013,0.59877326,3050.3,3049.2,0.01006927]
[1767364806317,0.00491738,3050.7,3049.6,0.00249671]
[1767364806921,0.60369064,3050.7,3050.2,0.00249671]
[1767364807216,0.00416026,3051.1,3050.2,0.00249671]
[1767364807421,0.60293352,3051.1,3049.5,4.17707246]
[1767364807610,0.60293352,3051.1,3049.9,0.00249671]
[1767364807813,0.00416026,3051.1,3049.9,0.00249671]
[1767364808008,0.00416026,3051.1,3049.3,4.27175276]
[1767364808213,0.59877326,3052.4,3050.1,0.16657671]
[1767364808416,0.59877326,3052.3,3050.1,0.16408]
[1767364808623,0.59877326,3051.9,3050.2,4.27175276]
[1767364808825,0.59877326,3051.9,3049.3,1.7038147]
[1767364809120,0.60172144,3051.9,3049.9,0.00249671]
[1767364809318,0.00491738,3051.2,3050.6,0.00491738]
[1767364809709,0.60172144,3051.9,3051.1,0.00249671]
[1767364810114,0.00294818,3051.9,3050.6,0.00491738]
[1767364810314,0.00294818,3051.9,3050.7,0.16653671]
[1767364810614,0.59877326,3052.5,3051.0,0.00249671]
[1767364810920,0.16389,3053.8,3051.4,0.16401]
[1767364811118,0.16392,3053.1,3051.1,4.17914695]
[1767364811323,0.16392,3053.1,3050.7,0.16405]
[1767364811525,0.16392,3053.1,3051.0,0.00249671]
[1767364811726,0.16393,3052.9,3051.0,0.00283909]
[1767364812133,0.00491738,3052.3,3051.0,0.00283909]
[1767364812317,0.00491738,3052.3,3050.3,0.16407]
[1767364812512,0.00491738,3052.3,3050.4,0.00249671]
[1767364812716,0.60369064,3052.3,3050.4,4.27511156]
[1767364813016,0.60369064,3052.3,3049.8,0.16409]
[1767364813218,0.59877326,3052.1,3049.8,0.16670311]
[1767364813418,0.59877326,3051.9,3050.1,0.00249671]
[1767364813623,0.59877326,3051.9,3049.9,0.00249671]
[1767364814122,0.59877326,3051.9,3050.0,4.29846746]
[1767364814325,0.59877326,3051.9,3050.6,0.00491738]
[1767364814513,0.00491738,3052.3,3050.6,0.00491738]
[1767364814715,0.60369064,3052.3,3050.6,0.00491738]
[1767364814915,0.76766064,3052.3,3050.6,0.00491738]
[1767364815116,0.59877326,3052.2,3050.6,0.00741409]
[1767364816625,0.59877326,3052.2,3050.8,0.00249671]
[1767364817029,0.59877326,3052.2,3050.6,0.00491738]
[1767364817425,0.59877326,3052.0,3050.6,0.00491738]
[1767364817732,4.04777326,3051.7,3049.8,0.00261311]
[1767364817928,3.88377326,3051.6,3049.8,0.00261311]
[1767364818129,0.59877326,3051.2,3049.8,0.00261311]
[1767364818826,0.59877326,3051.2,3049.2,0.16413]
[1767364819029,0.59877326,3051.1,3049.3,0.00261311]
[1767364819222,0.59877326,3051.0,3049.3,0.00261311]
[1767364819621,0.59877326,3051.0,3049.4,0.00261311]
[1767364819822,0.00491738,3050.5,3049.4,0.00261311]
[1767364820123,0.00855335,3050.5,3049.5,0.00261311]
[1767364820827,0.00855335,3050.5,3049.7,0.0032783]
[1767364821127,0.76277326,3051.6,3049.8,4.35347693]
[1767364821427,0.59877326,3051.0,3049.7,0.0032783]
[1767364821629,0.59877326,3051.0,3049.4,0.00358035]
[1767364821825,0.59877326,3050.8,3049.5,0.00261311]
[1767364822029,0.00491738,3050.5,3049.8,0.00491738]
[1767364822932,0.59877326,3051.5,3050.6,0.00261311]
[1767364823133,0.59877326,3051.5,3049.9,4.208521]
[1767364823432,0.59877326,3051.5,3050.3,0.00261311]
[1767364823834,0.00491738,3051.2,3050.3,0.00261311]
[1767364825526,0.60369064,3051.2,3049.8,0.00491738]
[1767364825729,0.60369064,3051.2,3050.0,0.00491738]
[1767364825930,0.65395923,3051.0,3050.0,0.00491738]
[1767364826124,0.65395923,3050.8,3049.4,0.00358035]
[1767364826431,0.00491738,3051.2,3049.4,0.00849773]
[1767364826736,0.00491738,3051.2,3050.0,0.00491738]
[1767364828029,0.00491738,3051.2,3050.7,0.00491738]
[1767364828234,0.69359371,3051.2,3050.1,4.18435141]
[1767364828430,0.00491738,3051.2,3050.0,0.00491738]
[1767364828635,0.00491738,3051.2,3050.0,0.16899738]
[1767364828935,0.00491738,3051.2,3050.1,4.31967452]
[1767364829527,0.00491738,3051.2,3050.0,0.16899738]
[1767364829924,0.00491738,3051.2,3050.0,0.00491738]
[1767364830634,0.69359371,3051.2,3050.0,0.00491738]
[1767364830931,0.16404,3050.8,3049.4,0.00358035]
[1767364831247,0.68867633,3050.7,3049.4,0.00358035]
[1767364831937,0.85274633,3050.3,3048.2,3.44418]
[1767364832149,0.68867633,3049.9,3047.9,2.94511306]
[1767364832328,0.85277633,3049.9,3048.1,0.00358035]
[1767364832731,0.85277633,3049.9,3048.4,0.00358035]
[1767364833033,0.00491738,3049.5,3048.4,0.00622579]
[1767364833235,0.69359371,3049.5,3048.4,0.00264544]
[1767364833534,0.69359371,3049.5,3047.8,0.1642]
[1767364833734,0.69359371,3049.5,3047.1,3.10935306]
[1767364833935,0.69359371,3049.5,3047.1,0.16424]
[1767364834236,0.69359371,3049.5,3047.0,0.39186445]
[1767364834237,0.68867633,3049.2,3047.2,0.00358035]
[1767364834535,0.69229746,3049.2,3047.4,0.16422]
[1767364834726,0.69229746,3049.2,3047.2,0.00418903]
[1767364835037,0.69229746,3049.2,3047.2,0.00776938]
[1767364835428,0.69229746,3049.2,3047.2,0.00418903]
[1767364835632,0.68867633,3049.0,3047.2,0.00418903]
[1767364835837,0.85281633,3049.0,3047.2,0.00418903]
[1767364836239,0.16414,3048.9,3047.2,0.00418903]
[1767364836444,0.68867633,3048.8,3047.2,0.00418903]
[1767364837038,0.68867633,3048.8,3047.3,0.00358035]
[1767364837443,0.68867633,3048.8,3047.5,0.00358035]
[1767364837645,0.00362113,3049.2,3047.6,0.00358035]
[1767364837841,0.00362113,3049.2,3047.6,4.28635734]
[1767364838038,0.69229746,3049.2,3047.6,0.00358035]
[1767364838245,0.69229746,3049.2,3047.7,0.00358035]
[1767364839243,0.00491738,3049.5,3048.3,0.16417]
[1767364839546,0.68867633,3048.6,3047.2,0.00418903]
[1767364839941,0.68867633,3048.6,3047.3,0.00358035]
[1767364840336,0.69125543,3048.6,3047.2,0.00418903]
[1767364840538,0.69125543,3048.6,3047.2,0.00776938]
[1767364840938,0.85286633,3048.1,3046.1,3.282]
[1767364841143,0.00491738,3047.4,3045.6,0.16432]
[1767364841345,0.00491738,3047.4,3046.1,0.00358035]
[1767364841837,0.69359371,3047.4,3046.1,0.00668992]
[1767364842644,0.69359371,3047.4,3046.3,0.00358035]
[1767364842944,0.69359371,3047.4,3046.2,0.00358035]
[1767364843141,0.69359371,3047.4,3046.1,0.00310957]
[1767364843142,0.85782371,3047.4,3046.1,0.00310957]
[1767364843342,0.68867633,3047.2,3045.0,3.282]
[1767364843538,0.68867633,3047.2,3045.6,0.00358035]
[1767364843931,0.68867633,3047.2,3046.2,0.00358035]
[1767364844334,0.68867633,3047.2,3046.2,0.0023818]
[1767364844732,0.00491738,3047.4,3046.2,0.0023818]
[1767364844932,0.00491738,3047.4,3046.3,4.22887816]
[1767364845336,0.00491738,3047.4,3046.2,3.2843818]
[1767364845536,0.69125543,3048.6,3046.3,4.22887816]
[1767364845941,0.69125543,3048.6,3046.4,0.67872708]
[1767364846338,0.0025791,3048.6,3046.9,0.16425]
[1767364846741,0.00491738,3048.1,3047.4,0.00491738]
[1767364846944,0.0025791,3048.6,3047.4,0.00491738]
[1767364847160,0.85277633,3049.8,3047.6,0.16421]
[1767364847338,0.85277633,3049.8,3047.7,8.04]
[1767364847535,0.85277633,3049.8,3047.7,7.45180859]
[1767364848045,0.00491738,3049.1,3047.8,8.04]
[1767364848250,0.00798017,3049.1,3047.8,8.04]
[1767364848546,0.68867633,3049.8,3047.9,4.36127244]
[1767364848841,0.68867633,3049.8,3048.0,8.041]
[1767364849238,0.68867633,3049.8,3048.1,4.2537785]
[1767364849446,0.68867633,3049.8,3047.7,8.042]
[1767364849648,0.00491738,3049.1,3047.7,8.042]
[1767364849849,0.00491738,3049.1,3047.8,4.35260835]
[1767364850343,0.00491738,3049.1,3047.7,8.042]
[1767364850344,0.00491738,3049.1,3047.4,0.16914738]
[1767364850538,0.69359371,3049.1,3047.4,0.00491738]
[1767364850741,0.85281633,3049.0,3047.4,0.00491738]
[1767364851442,0.68867633,3048.8,3047.4,0.00491738]
[1767364851636,0.68867633,3048.8,3044.8,4.1397549]
[1767364851637,0.68867633,3048.6,3046.0,0.1643]
[1767364851836,0.85283633,3048.6,3046.2,3.6933818]
[1767364852050,0.85283633,3048.6,3046.4,4.35897106]
[1767364852252,0.85283633,3048.6,3046.3,11.62097106]
[1767364852451,0.68867633,3048.6,3046.3,7.262]
[1767364852647,0.00491738,3049.1,3047.1,0.00491738]
[1767364852854,0.00491738,3049.1,3047.5,0.16422]
[1767364853740,0.00491738,3049.1,3047.6,0.16421]
[1767364854351,0.00491738,3049.1,3047.7,4.20215648]
[1767364854849,0.00491738,3049.1,3047.6,0.16421]
[1767364855849,0.00491738,3049.1,3047.7,4.36788429]
[1767364856151,0.00491738,3049.1,3047.7,9.12688429]
[1767364856348,0.00491738,3049.1,3047.8,0.1642]
[1767364856647,0.00491738,3049.1,3047.9,0.1642]
[1767364857156,0.00491738,3049.1,3047.7,8.96367429]
[1767364857445,0.00491738,3049.1,3047.9,0.1642]
[1767364858445,0.00491738,3049.1,3047.4,3.282]
[1767364858644,0.6800596,3049.1,3047.2,0.16423]
[1767364858843,0.67514222,3048.6,3047.1,0.00491738]
[1767364859349,0.67514222,3048.5,3047.1,0.00491738]
[1767364860047,0.83931222,3048.5,3047.1,0.00491738]
[1767364860246,0.67514222,3048.5,3047.1,0.00491738]
[1767364860450,0.00491738,3049.1,3047.3,0.16423]
[1767364860850,0.67514222,3048.6,3047.1,0.00491738]
[1767364861056,0.67514222,3048.4,3047.1,0.00491738]
[1767364861259,0.16418,3048.3,3046.2,8.0443818]
[1767364861452,0.67514222,3048.0,3046.2,3.2853818]
[1767364861651,0.67514222,3047.6,3046.2,0.0023818]
[1767364861845,0.84255851,3047.6,3046.2,0.0023818]
[1767364862050,0.67514222,3047.2,3045.0,0.16435]
[1767364862251,0.00491738,3046.4,3045.8,0.00491738]
[1767364862558,0.6800596,3046.4,3045.1,4.25045391]
[1767364862754,0.6800596,3046.4,3044.4,0.16439]
[1767364862953,0.6800596,3046.4,3044.4,0.00362676]
[1767364863148,0.00491738,3046.4,3044.9,4.2227354]
[1767364863358,0.00491738,3046.4,3044.6,0.6573744]
[1767364863561,0.00491738,3046.4,3044.8,4.2227354]
[1767364863859,0.00491738,3046.4,3044.7,4.2227354]
[1767364864061,0.00491738,3046.4,3044.6,4.26807769]
[1767364864258,0.00491738,3046.4,3044.9,4.26807769]
[1767364864558,0.6800596,3046.4,3044.7,4.26807769]
[1767364864761,0.6800596,3046.4,3044.4,0.00362676]
[1767364864961,0.6800596,3046.4,3044.5,4.23155701]
[1767364865159,0.6800596,3046.4,3044.4,0.00362676]
[1767364865459,0.00491738,3046.4,3044.6,0.6573744]
[1767364865661,0.00491738,3046.4,3044.8,0.16436]
[1767364865956,0.00491738,3046.4,3044.7,4.30023099]
[1767364866351,0.00491738,3046.4,3044.4,0.00362676]
[1767364866352,0.00491738,3046.4,3044.6,4.30023099]
[1767364866555,0.00491738,3046.4,3044.7,0.6573744]
[1767364866755,0.00491738,3046.4,3044.7,5.05230183]
[1767364866957,0.00491738,3046.4,3045.0,0.16435]
[1767364867260,0.00491738,3046.4,3044.4,0.00362676]
[1767364867463,0.6800596,3046.4,3044.4,0.00362676]
[1767364867762,0.6800596,3046.4,3044.5,4.23055743]
[1767364868866,0.00491738,3046.4,3044.6,0.16437]
[1767364869260,0.00491738,3046.4,3044.7,4.99927821]
[1767364869460,0.67514222,3047.0,3044.8,0.6573744]
[1767364869672,0.67833851,3047.6,3045.3,0.16434]
[1767364869863,0.67833851,3047.6,3045.4,4.761]
[1767364870058,0.67833851,3047.6,3045.4,4.19451189]
[1767364870363,0.83937222,3047.4,3044.8,3.9413744]
[1767364870668,0.00319629,3047.6,3045.8,0.00491738]
[1767364870669,0.00491738,3046.4,3045.8,0.00491738]
[1767364871262,0.00319629,3047.6,3045.9,10.45298746]
[1767364871567,0.00319629,3047.6,3045.9,4.45298746]
[1767364871766,0.00319629,3047.6,3046.1,0.16429]
[1767364872174,0.00319629,3047.6,3046.6,0.16427]
[1767364872371,0.00319629,3047.6,3046.6,0.1669697]
[1767364872573,0.00319629,3047.6,3046.7,4.2636495]
[1767364872868,0.67514222,3048.4,3046.7,4.2636495]
[1767364873273,0.67514222,3048.9,3046.9,0.16425]
[1767364873457,0.00491738,3048.2,3047.6,0.00491738]
[1767364873872,0.00902635,3048.2,3047.6,0.00491738]
[1767364874868,0.00902635,3048.2,3047.0,4.3995737]
[1767364875180,0.00902635,3048.2,3047.4,0.16422]
[1767364875470,0.67514222,3049.5,3047.7,0.16421]
[1767364876064,0.67514222,3049.5,3047.0,0.16425]
[1767364876065,0.83925222,3049.5,3047.0,0.16425]
[1767364876266,3.284,3049.8,3046.6,0.0026997]
[1767364876267,0.67514222,3048.9,3046.6,0.0026997]
[1767364876470,0.67514222,3048.6,3046.6,0.0026997]
[1767364876772,0.00491738,3048.1,3047.4,0.00491738]
[1767364876974,0.6800596,3048.1,3046.7,0.16426]
[1767364877182,0.6800596,3048.1,3046.6,0.0026997]
[1767364877873,0.6800596,3048.1,3047.0,0.00491738]
[1767364878172,0.67514222,3047.9,3045.8,0.16431]
[1767364878371,0.67514222,3047.9,3045.8,2.464]
[1767364878566,0.67514222,3047.9,3046.4,0.16428]
[1767364878969,0.67514222,3047.9,3046.8,0.00491738]
[1767364879169,0.00491738,3048.1,3046.8,0.00491738]
[1767364879372,0.6800596,3048.1,3046.8,0.00491738]
[1767364880464,0.67514222,3048.0,3046.4,0.00306157]
[1767364882182,0.83933222,3048.0,3046.4,0.00306157]
[1767364882380,0.67514222,3048.0,3046.4,0.00576127]
[1767364882586,0.67514222,3048.0,3046.5,4.28466806]
[1767364883765,0.67514222,3048.0,3046.4,0.00576127]
[1767364883978,0.83933222,3048.0,3046.4,0.00306157]
[1767364884372,0.67514222,3048.0,3046.4,0.00576127]
[1767364884578,0.00491738,3048.1,3046.6,0.0026997]
[1767364884881,0.00491738,3048.1,3046.7,4.27462415]
[1767364885081,0.00298317,3048.9,3046.8,0.6573744]
[1767364885272,0.00298317,3048.9,3047.0,0.6573744]
[1767364885677,0.00298317,3048.9,3047.2,0.6573744]
[1767364885877,0.00298317,3048.9,3047.8,0.1642]
[1767364886173,0.00491738,3048.7,3048.0,0.00491738]
[1767364886370,0.67514222,3049.7,3048.0,0.00491738]
[1767364886684,0.67514222,3049.7,3048.1,4.3346512]
[1767364887181,0.67514222,3049.7,3048.4,0.0026997]
[1767364887375,0.00491738,3049.2,3048.1,0.0026997]
[1767364888273,0.00491738,3049.2,3048.3,0.0026997]
[1767364888674,0.00491738,3049.2,3048.0,0.00491738]
[1767364888983,0.00491738,3049.2,3048.1,0.0026997]
[1767364889479,0.7255167,3049.2,3048.0,0.00491738]
[1767364890081,0.72059932,3049.0,3046.7,0.16426]
[1767364890278,0.88473932,3049.0,3046.8,0.16425]
[1767364890584,0.88473932,3049.0,3047.1,0.0026997]
[1767364890777,0.72059932,3049.0,3047.1,0.1669397]
[1767364890984,0.72059932,3049.0,3047.2,4.17134514]
[1767364891182,0.72059932,3049.0,3047.8,0.00491738]
[1767364892584,0.72059932,3049.0,3047.8,0.00761708]
[1767364892786,0.00491738,3049.2,3048.1,0.0026997]
[1767364893180,0.00491738,3049.2,3048.5,0.0026997]
[1767364893884,0.72059932,3050.4,3048.7,0.16415]
[1767364894086,2.33944257,3052.8,3048.7,0.16415]
[1767364894087,0.72059932,3051.1,3048.7,0.71910522]
[1767364894288,0.72059932,3051.1,3049.5,0.16411]
[1767364894490,0.72059932,3051.1,3049.5,0.1668097]
[1767364894785,0.00491738,3050.6,3050.0,0.00491738]
[1767364894979,0.72854476,3050.6,3048.8,0.16415]
[1767364895291,0.72854476,3050.6,3048.8,4.3871191]
[1767364895585,0.72854476,3050.6,3048.8,4.2229691]
[1767364895784,0.72854476,3050.6,3048.4,0.16417]
[1767364895990,0.72854476,3050.6,3049.2,0.00491738]
[1767364896681,0.72059932,3050.4,3048.4,4.45834085]
[1767364896882,0.72059932,3050.2,3048.4,0.00380151]
[1767364897084,0.72059932,3049.6,3048.4,0.00380151]
[1767364897982,0.72059932,3049.6,3048.5,0.0026997]
[1767364898290,0.72059932,3049.6,3047.6,0.16421]
[1767364898475,0.16411,3049.7,3047.6,0.16421]
[1767364898476,0.00491738,3048.9,3047.6,0.16421]
[1767364898676,0.00491738,3048.9,3047.0,3.44625]
[1767364898893,0.7255167,3048.9,3047.0,0.16425]
[1767364899082,0.7255167,3048.9,3047.1,4.24389012]
[1767364899284,0.7255167,3048.9,3047.1,4.24786783]
[1767364899588,0.7255167,3048.9,3047.1,0.00397771]
[1767364902687,0.8896567,3048.9,3047.1,0.00397771]
[1767364903484,0.7255167,3048.9,3047.2,4.21038043]
[1767364903791,0.00491738,3048.9,3047.2,4.21038043]
[1767364903993,0.7255167,3048.9,3047.2,7.49238043]
[1767364904194,0.7255167,3048.9,3047.2,4.21038043]
[1767364904393,0.7255167,3048.9,3047.1,0.00397771]
[1767364904893,0.7255167,3048.9,3047.2,4.31137399]
[1767364905289,0.00491738,3048.9,3047.2,4.31137399]
[1767364905691,0.00491738,3048.9,3047.3,0.16423]
[1767364906087,0.00491738,3048.9,3047.4,4.20043435]
[1767364906292,0.00491738,3048.9,3047.4,4.36465435]
[1767364906593,0.00491738,3048.9,3047.4,0.16422]
[1767364906898,0.00491738,3048.9,3047.5,4.1917841]
[1767364907500,0.72059932,3049.5,3047.8,0.1642]
[1767364907794,3.282,3050.1,3047.9,4.3559841]
[1767364907795,0.72059932,3050.0,3047.9,4.3559841]
[1767364908101,0.72059932,3050.0,3047.9,0.1642]
[1767364908499,0.72059932,3050.8,3048.7,1.27865007]
[1767364908694,0.72059932,3050.8,3048.7,1.44280007]
[1767364908889,0.72059932,3050.8,3049.1,0.16413]
[1767364909096,0.72059932,3050.8,3049.2,1.27865007]
[1767364909296,0.72059932,3050.8,3049.2,5.44481243]
[1767364909496,0.72059932,3050.8,3049.3,0.16412]
[1767364909707,0.72059932,3052.0,3049.7,1.27865007]
[1767364910010,0.72059932,3052.0,3050.2,1.27865007]
[1767364910207,0.72059932,3052.0,3050.1,0.16408]
[1767364910602,0.7232262,3052.0,3050.7,0.00491738]
[1767364910808,0.00491738,3051.4,3050.7,0.00491738]
[1767364911510,0.72059932,3051.3,3049.3,1.28248092]
[1767364911901,0.72059932,3051.3,3049.6,4.22608424]
[1767364912101,0.72059932,3051.3,3049.4,4.22608424]
[1767364912304,0.00491738,3051.4,3050.0,0.16408]
[1767364912605,0.00262688,3052.0,3050.0,0.16408]
[1767364912606,0.7232262,3052.0,3050.3,1.27865007]
[1767364912806,0.7232262,3052.0,3050.1,4.30889722]
[1767364913006,0.7232262,3052.0,3050.0,0.00491738]
[1767364913805,0.7232262,3052.0,3050.1,4.2485294]
[1767364913806,0.00491738,3051.3,3050.1,4.2485294]
[1767364914006,0.00491738,3051.3,3050.0,0.00491738]
[1767364914211,0.7255167,3051.3,3050.0,0.00491738]
[1767364915114,0.72059932,3051.9,3050.1,4.31156114]
[1767364915316,0.72059932,3051.9,3050.3,1.27865007]
[1767364915713,0.72059932,3051.9,3050.4,4.31156114]
[1767364915907,0.00262688,3052.0,3050.4,4.31156114]
[1767364916211,0.00491738,3051.5,3050.5,0.16405]
[1767364916412,0.00262688,3052.0,3050.5,0.16405]
[1767364916612,0.00262688,3052.0,3050.6,4.32112397]
[1767364917408,0.00491738,3051.6,3050.6,4.32112397]
[1767364918623,0.00262688,3052.0,3050.6,4.32112397]
[1767364918925,0.00262688,3052.0,3050.7,1.27865007]
[1767364919324,0.00262688,3052.0,3050.8,4.30244117]
[1767364919724,0.0032783,3051.7,3050.8,4.30244117]
[1767364920125,0.74110413,3053.1,3051.2,1.27865007]
[1767364920623,4.56365007,3054.4,3051.2,1.27865007]
[1767364920624,0.74110413,3053.7,3051.8,0.16399]
[1767364920928,0.74110413,3053.7,3051.8,1.27865007]
[1767364921112,0.74110413,3053.7,3052.4,0.00491738]
[1767364921113,0.74369962,3053.7,3052.4,0.00491738]
[1767364921312,0.00259549,3053.7,3052.4,0.00491738]
[1767364921717,0.00259549,3053.7,3052.5,4.17925993]
[1767364921925,0.74110413,3054.3,3052.5,4.17925993]
[1767364922223,0.74110413,3054.3,3052.6,4.34448399]
[1767364922528,0.16381,3055.2,3052.9,1.27865007]
[1767364922529,0.74110413,3054.9,3052.9,1.27865007]
[1767364922823,0.74485488,3054.9,3053.5,1.27865007]
[1767364923019,0.00375075,3054.9,3053.6,4.751]
[1767364923217,0.74485488,3054.9,3053.9,0.00491738]
[1767364923821,0.74110413,3054.8,3052.2,1.97367457]
[1767364924023,6.16757075,3054.9,3052.0,0.16398]
[1767364924024,0.74110413,3054.6,3052.0,0.16398]
[1767364924224,0.90497413,3054.1,3052.3,4.27789811]
[1767364924434,0.74110413,3054.1,3052.2,6.02865007]
[1767364924618,0.00375075,3054.9,3053.2,1.27865007]
[1767364924928,0.00375075,3054.9,3053.7,0.00491738]
[1767364925315,0.00375075,3054.9,3053.8,4.18300516]
[1767364925520,0.00375075,3054.9,3053.7,0.00491738]
[1767364926028,0.74110413,3056.5,3054.2,1.27865007]
[1767364926230,0.74110413,3056.5,3054.3,0.16385]
[1767364926423,0.74110413,3056.5,3054.4,0.16385]
[1767364926637,0.74110413,3056.5,3054.3,4.25733228]
[1767364926638,0.74110413,3056.5,3054.3,9.00633228]
[1767364926827,0.74110413,3056.5,3053.8,1.27865007]
[1767364926828,0.90484413,3056.5,3054.0,4.749]
[1767364927028,0.90857577,3056.5,3054.0,4.75148873]
[1767364927229,0.90857577,3056.5,3054.2,4.32781913]
[1767364927426,0.74110413,3056.3,3054.0,0.00248873]
[1767364927622,0.74110413,3055.8,3054.0,0.00248873]
[1767364927827,0.90488413,3055.8,3054.0,0.00248873]
[1767364928224,0.74110413,3055.8,3054.1,4.32544023]
[1767364928420,0.74110413,3056.4,3054.1,4.32544023]
[1767364928625,0.74110413,3056.4,3054.3,1.44250007]
[1767364928823,0.74110413,3056.4,3054.8,1.27865007]
[1767364929025,0.00373164,3056.5,3054.8,1.27865007]
[1767364929224,0.41740209,3058.6,3054.8,1.27865007]
[1767364929225,0.41740209,3058.6,3056.1,0.6950245]
[1767364929433,0.41740209,3058.6,3056.3,0.8587745]
[1767364929734,0.41740209,3058.6,3057.0,0.00490926]
[1767364930133,0.16364,3058.4,3056.3,4.23304344]
[1767364930326,1.27865007,3058.3,3056.3,0.00370579]
[1767364930530,0.00323121,3058.4,3056.3,0.00370579]
[1767364930730,0.00323121,3058.4,3056.4,4.92806794]
[1767364930927,0.00323121,3058.4,3056.3,0.00370579]
[1767364931126,0.00488217,3057.7,3056.3,0.00370579]
[1767364931839,0.90478413,3057.6,3055.1,0.6950245]
[1767364932028,0.16369,3057.3,3055.1,0.6950245]
[1767364932231,0.00490926,3056.5,3055.9,0.00490926]
[1767364932428,0.00490926,3056.5,3054.6,1.97367457]
[1767364932631,0.00490926,3056.5,3055.2,4.32925567]
[1767364932836,0.00490926,3056.5,3055.2,0.0036829]
[1767364933634,0.74601339,3056.5,3054.0,0.6950245]
[1767364933836,0.16377,3056.0,3054.0,0.6987074]
[1767364934134,0.74110413,3056.2,3054.0,4.98885422]
[1767364934335,0.74110413,3056.2,3054.1,0.0036829]
[1767364934634,0.16376,3056.1,3054.8,0.00490926]
[1767364934836,0.0027436,3056.2,3054.8,0.00490926]
[1767364935131,0.0027436,3056.2,3055.1,0.0036829]
[1767364935332,0.0027436,3056.2,3054.9,0.0036829]
[1767364935529,0.0027436,3056.2,3055.2,0.0036829]
[1767364935728,0.0027436,3056.2,3055.6,0.0036829]
[1767364936035,0.0027436,3056.2,3055.5,0.0036829]
[1767364936535,0.00490926,3056.5,3055.6,4.30897376]
[1767364936839,0.00490926,3056.5,3054.8,0.00490926]
[1767364937038,0.00490926,3056.5,3055.0,0.0036829]
[1767364937334,0.00827832,3056.5,3055.1,4.30334887]
[1767364937533,0.00827832,3056.5,3055.3,0.0036829]
[1767364937736,0.00827832,3056.5,3054.9,4.30334887]
[1767364937933,0.17201832,3056.5,3054.8,0.00490926]
[1767364938134,0.90485413,3056.3,3054.8,0.00490926]
[1767364938332,0.00827832,3056.5,3054.8,0.00490926]
[1767364938739,0.74938245,3056.5,3054.8,0.00490926]
[1767364938933,0.74938245,3056.5,3054.8,4.31194103]
[1767364939239,0.91312245,3056.5,3054.8,0.00490926]
[1767364939428,0.91312245,3056.5,3054.8,4.31194103]
[1767364939628,0.74110413,3056.4,3054.8,0.00490926]
[1767364939847,0.16378,3055.7,3054.1,0.00331863]
[1767364940328,0.16378,3055.7,3054.1,4.3103504]
[1767364940837,0.74110413,3056.3,3054.6,0.00490926]
[1767364941038,0.00827832,3056.5,3054.6,0.00490926]
[1767364941240,0.74110413,3056.3,3054.7,4.28854492]
[1767364941438,0.74110413,3056.1,3054.6,0.00490926]
[1767364941632,1.27865007,3056.4,3054.6,0.00490926]
[1767364941633,0.74110413,3055.9,3054.6,0.00490926]
[1767364941943,0.74938245,3056.5,3055.0,4.30703177]
[1767364942242,0.74938245,3056.5,3054.6,0.00490926]
[1767364942543,0.74110413,3056.3,3054.6,0.00490926]
[1767364942735,0.74110413,3056.1,3054.6,0.00490926]
[1767364943343,0.74110413,3056.1,3053.6,0.6950245]
[1767364943344,0.74110413,3055.9,3053.6,0.6950245]
[1767364943535,0.16375,3056.3,3054.2,4.30703177]
[1767364943837,0.00827832,3056.5,3055.3,0.6950245]
[1767364944035,0.00827832,3056.5,3055.1,1.27865007]
[1767364944236,0.00827832,3056.5,3055.5,0.00329993]
[1767364944445,0.74110413,3057.8,3055.5,0.00329993]
[1767364944630,0.74110413,3057.8,3055.7,0.6950245]
[1767364944837,0.16365,3058.1,3055.9,4.30703177]
[1767364945238,2.0197542,3057.8,3055.5,0.00329993]
[1767364945438,0.74110413,3057.6,3055.5,0.00329993]
[1767364945637,0.86475779,3057.5,3055.6,4.89171437]
[1767364945836,0.16368,3057.6,3055.9,4.30703177]
[1767364946039,0.16368,3057.6,3055.5,0.00329993]
[1767364946040,0.00490926,3057.1,3055.7,4.30703177]
[1767364946345,1.74405987,3057.0,3055.5,0.00329993]
[1767364946532,1.58034987,3056.9,3055.5,0.00329993]
[1767364946737,0.16375,3056.3,3054.4,0.69089281]
[1767364946939,0.16375,3056.2,3054.4,0.69089281]
[1767364947138,0.86695899,3056.1,3053.8,0.16388]
[1767364947338,1.27865007,3055.8,3053.0,1.00572141]
[1767364947638,1.27865007,3055.8,3053.0,1.69661422]
[1767364947639,0.00490926,3055.3,3053.0,1.69661422]
[1767364947845,1.03118878,3055.2,3053.0,1.53269422]
[1767364948038,0.86737878,3055.1,3053.3,4.30703177]
[1767364948447,0.86737878,3055.1,3053.0,1.53269422]
[1767364948448,0.7145806,3055.0,3053.0,0.84180141]
[1767364948745,0.16383,3054.7,3052.4,0.69089281]
[1767364948946,0.86737878,3054.6,3052.9,4.30703177]
[1767364949146,1.58195938,3054.6,3052.6,4.30703177]
[1767364949345,0.86737878,3054.5,3052.6,4.30703177]
[1767364949545,0.86737878,3054.5,3052.4,0.69412667]
[1767364949841,0.00490926,3053.8,3052.4,5.00115844]
[1767364950037,0.00490926,3053.8,3052.7,4.30703177]
[1767364950243,0.00490926,3053.8,3052.7,4.99792458]
[1767364950443,0.00490926,3053.8,3052.8,4.16331237]
[1767364950841,0.00490926,3053.8,3052.9,4.30703177]